Cogmind - Beta 16.1 @@@ ROGUE MODE // 2026.02.22 @ 17:18:12 Player: Zish Result: Destroyed by Y-45 Defender with Heavy Assault Rifle Performance ------------- Evolutions (0) 0 Regions Visited (4) 800 Robots Destroyed (42) 210 Value Destroyed (685) 685 Prototype IDs (23) 460 Alien Tech Used (0) 0 Bonus (413) 413 TOTAL SCORE: 2568 Bonus ------- Follower Combat Kills 120 Aligned with FarCom 300 Friendly Fire -7 Cogmind --------- Core Integrity 0/250 Matter 202/300 Energy 105/125 System Corruption 3% Temperature Cool (0) Movement Core (1500) Ox29 Location -9/Mines Parts ------- > --- POWER (1) -------- Light Ion Engine > --- PROPULSION (2) --- (None) > --- UTILITY (2) ------ Huge Storage Unit Improved Trap Extractor (0/6) > --- WEAPON (2) ------- Light Assault Rifle Makeshift Hammer > --- INVENTORY (25) --- Lightpack 2.0 Hacking Suite Tractor Beam Datajack Peak State ------------ > --- POWER ------------ Light Nuclear Core > --- PROPULSION ------- Light Treads Light Treads > --- UTILITY ---------- Huge Storage Unit Improved Trap Extractor > --- WEAPON ----------- Flak Cannon Shock Bomb Launcher > --- INVENTORY -------- Light Ion Engine Hacking Suite Tractor Beam Small Laser Light Assault Rifle Light Cannon Grenade Launcher Datajack [Rating: 17] Favorites ----------- Power Light Nuclear Core Engine Light Ion Engine Power Core Light Nuclear Core Propulsion Aluminum Leg Treads Light Treads Leg Aluminum Leg Utility Improved Trap Extractor Device Improved Trap Extractor Storage Huge Storage Unit Processor Transport Network Coupler Weapon Flak Cannon Energy Gun EM Pulse Gun Ballistic Gun Light Assault Rifle Ballistic Cannon Flak Cannon Launcher Shock Bomb Launcher Special Melee Weapon Datajack Build | -11 -10 -10 -10 -9 ------- Run | Yrd Mat Min Exi Min Slots Evolved . | . . . . . Power . | . . . . . Propulsion . | . . . . . Utility . | . . . . . Weapon . | . . . . . Parts Attached 22 | 7 5 8 . 2 Power 3 | 1 1 1 . . Engine 2 | 1 1 . . . Core 1 | . . 1 . . Reactor . | . . . . . Propulsion 4 | 2 . 2 . . Treads 2 | 2 . . . . Leg 2 | . . 2 . . Wheel . | . . . . . Hover . | . . . . . Flight . | . . . . . Utility 7 | 2 3 2 . . Device 2 | 1 . 1 . . Storage 3 | 1 1 1 . . Processor 2 | . 2 . . . Hackware . | . . . . . Protection . | . . . . . Artifact . | . . . . . Weapon 8 | 2 1 3 . 2 Energy Gun 1 | 1 . . . . Energy Cannon . | . . . . . Ballistic Gun 1 | 1 . . . . Ballistic Cannon 2 | . 1 1 . . Launcher 2 | . . 1 . 1 Special Weapon . | . . . . . Impact Weapon 1 | . . . . 1 Slashing Weapon . | . . . . . Piercing Weapon . | . . . . . Special Melee Weapon 1 | . . 1 . . Unidentified Prototypes . | . . . . . Parts Lost 11 | . 2 3 . 6 Power 1 | . . . . 1 Propulsion 4 | . . 2 . 2 Utility 1 | . 1 . . . Weapon 5 | . 1 1 . 3 Highest Loss Streak 5 | . 2 1 . 5 To Critical Strikes . | . . . . . Average Backups 7 | 1 5 7 7 6 Power . | . 1 1 1 . Propulsion . | . . . . . Utility 1 | . . 2 2 3 Weapon 3 | . 2 3 2 2 Tool/Special . | . . . . . Unused Backups 3 | . . . 1 2 Power . | . . . . . Propulsion . | . . . . . Utility 2 | . . . . 2 Weapon 1 | . . . 1 . Tool/Special . | . . . . . Average Slot Usage (%) 87 | . 99 80 100 97 Engine 3 | . 14 . . 9 Core 10 | . . 13 14 4 Treads 5 | . 28 1 . . Leg 10 | . . 7 28 26 Device 12 | . 7 13 14 14 Storage 14 | . 14 14 14 14 Processor 1 | . 6 . . . Ballistic Gun 7 | . 10 6 13 . Ballistic Cannon 14 | . 12 14 14 17 Launcher 5 | . . 7 . 9 Peak Build Rating 17 | 7 8 17 17 17 Average Rating 13 | 4 7 14 15 15 On Entrance 9 | . 7 8 14 17 Avg Prop Armor Cover (%) . | . . . . . Naked Turns . | . . . . . Heaviest Build 100 | 12 18 100 97 97 Greatest Support 40 | 40 40 40 20 20 Greatest Overweight (x) 33 | 3 . 33 4 28 Average Overweight (x) 5 | . . 11 4 4 Largest Inventory Capacity 25 | 8 10 25 25 25 Average Capacity 22 | 7 9 24 25 25 Most Carried 11 | 3 7 9 11 10 Average Carried 7 | 1 5 7 8 8 Final Capacity 25 | 8 10 25 25 25 Final Carried 9 | 2 6 7 9 6 Class Distribution -------------------- 100% | Mutant Dominant Class ---------------- Mutant | -10/Materials Mutant | -10/Mines Mutant | -10/Exiles Mutant | -9/Mines Resources | -11 -10 -10 -10 -9 ----------- Run | Yrd Mat Min Exi Min Matter Collected 1133 | 272 373 445 . 43 Remotely 331 | 99 232 . . . Salvage Created 1091 | 98 812 156 . 25 Parts 78 | 3 54 19 . 2 Haulers Intercepted 2 | . 2 . . . Recyclers Shooed 1 | . 1 . . . Parts Field Recycled . | . . . . . Retrieved Matter . | . . . . . Parts Self-Destructed . | . . . . . Prevented . | . . . . . Parts Restored . | . . . . . Kills | -11 -10 -10 -10 -9 ------- Run | Yrd Mat Min Exi Min Combat Hostiles Destroyed 32 | . 17 11 . 4 Guns 9 | . 9 . . . Cannons 14 | . 8 6 . . AOE 9 | . . 5 . 4 Classes Destroyed 10 | 1 7 2 . . Worker 1 | . 1 . . . Builder 3 | . 1 2 . . Tunneler 1 | . . 1 . . Hauler 2 | . 2 . . . Recycler 3 | 1 2 . . . Operator 3 | . 3 . . . Watcher 2 | . 2 . . . Swarmer 16 | . 6 6 . 4 Grunt 11 | . 11 . . . Assembled 5 | . . 5 . . Best Kill Streak 8 | 1 8 5 . 4 Combat Bots Only 4 | . 3 4 . 4 Max Kills in Single Turn 3 | 1 2 3 . 3 Gunslinging . | . . . . . Exploded 3 | . . 1 . 3 Melee . | . . . . . Uniques/NPCs Destroyed . | . . . . . Combat | -11 -10 -10 -10 -9 -------- Run | Yrd Mat Min Exi Min Hostile Shots Fired 161 | . 71 43 . 47 Missed 48 | . 21 13 . 14 Hits 113 | . 50 30 . 33 Melee 3 | . . 3 . . Projectile 110 | . 50 27 . 33 Critical Strikes 1 | . 1 . . . Damage Taken 1399 | . 496 477 . 426 Core 253 | . 77 102 . 74 Absorbed by Shields . | . . . . . Core Remaining (%) 100 | 100 . . . . Volleys Fired 102 | 2 70 24 . 6 Largest 2 | 2 2 2 . 2 Hottest 73 | 60 70 73 . 67 Shots Fired 198 | 4 140 41 1 12 Gun 81 | 4 70 5 . 2 Cannon 105 | . 70 27 1 7 Launcher 12 | . . 9 . 3 Special . | . . . . . Kinetic 157 | 2 113 32 1 9 Thermal . | . . . . . Explosive 3 | . . . . 3 Electromagnetic 38 | 2 27 9 . . Robot Hit Streak 8 | 1 8 8 . 3 Robot Miss Streak 10 | 1 4 10 . 5 Penetration Max . | . . . . . Secondary Targets . | . . . . . Shots Hit Robots 117 | 2 84 26 . 5 Core Hits 80 | 2 40 29 . 9 Critical Kills 1 | . 1 . . . Critical Parts Destroyed . | . . . . . Critical Strikes 5 | . 5 . . . Destroy 1 | . 1 . . . Blast 4 | . 4 . . . Melee Attacks . | . . . . . Impact . | . . . . . Slashing . | . . . . . Piercing . | . . . . . Sneak Attacks . | . . . . . Combat Hostiles . | . . . . . Follow-up Attacks . | . . . . . Damage Inflicted 2181 | 19 1311 579 . 272 Guns 528 | 19 485 15 . 9 Cannons 1068 | . 742 267 . 59 Explosions 585 | . 84 297 . 204 Melee . | . . . . . Ramming . | . . . . . Kinetic 1364 | 19 995 282 . 68 Thermal 173 | . 84 89 . . Explosive 204 | . . . . 204 Electromagnetic 440 | . 232 208 . . Impact . | . . . . . Slashing . | . . . . . Piercing . | . . . . . Highest Corruption 3 | . 2 3 3 3 Average Corruption 2 | . 2 2 3 3 Corruption Purged . | . . . . . Corruption Blocked . | . . . . . Effects 122 | . 3 91 20 8 Message Errors 32 | . 1 27 2 2 Matter Fused 24 | . 1 19 4 . Heat Flow Errors 16 | . . 12 3 1 Energy Discharges 14 | . . 9 2 3 Parts Fused 1 | . . 1 . . Data Loss (minor) 21 | . . 15 5 1 Data Loss (major) 3 | . 1 1 1 . Misfires 7 | . . 5 1 1 Alerts 4 | . . 2 2 . Overload Shots . | . . . . . Overflow Damage 67 | . 39 28 . . Projectiles 23 | . 15 8 . . Explosions 44 | . 24 20 . . Melee . | . . . . . Knockbacks 25 | . 10 12 . 3 Impact . | . . . . . Kinetic 23 | . 9 12 . 2 Secondary 2 | . 1 . . 1 Self-Inflicted Damage 121 | . . 101 . 20 Shots 9 | . . 8 . 1 Rammed . | . . . . . Targets Rammed . | . . . . . Kicked . | . . . . . Crushed . | . . . . . Highest Temperature 281 | 20 96 276 281 259 Average Temperature 56 | 15 20 75 120 91 Received Heat Transfer 249 | . 147 21 . 81 Siege Activations . | . . . . . Martial Activations . | . . . . . Shielding Activations . | . . . . . Robots Disrupted . | . . . . . Combat Hostiles . | . . . . . Robots Corrupted . | . . . . . Combat Hostiles . | . . . . . Parts Fried 1 | . . 1 . . Impact Corruptions . | . . . . . Robots Melted . | . . . . . Combat Hostiles . | . . . . . Parts Melted . | . . . . . Heat Transferred 250 | . 100 150 . . Parts Sabotaged . | . . . . . Parts Stolen . | . . . . . Parts Stripped . | . . . . . Power Chain Reactions 2 | . 1 1 . . Alert | -11 -10 -10 -10 -9 ------- Run | Yrd Mat Min Exi Min Maximum Alert Level . | . . . . . Low Security (%) 100 | 100 100 100 . 100 Level 1 . | . . . . . Level 2 . | . . . . . Level 3 . | . . . . . Level 4 . | . . . . . Level 5 . | . . . . . High Security . | . . . . . Max Security . | . . . . . Peak Influence 167 | 5 167 70 . 100 Initial 25 | . . 25 . . Average 23 | . 88 10 . 16 Influence Increases 904 | 5 491 303 . 105 Destroy 0b10 Robot/C 620 | . 340 200 . 80 Destroy 0b10 Robot/NC 75 | 5 55 15 . . Destroy Leader 128 | . 78 40 . 10 Allied During Kill 14 | . . 14 . . Successful Hack 6 | . 6 . . . Destroy Structure 31 | . 12 4 . 15 Lose Combat Pursuer 30 | . . 30 . . Influence Decreases 904 | 5 426 310 58 105 Entered New Map 98 | . . 40 58 . Time Decay 766 | 5 406 250 . 105 Lost Part 40 | . 20 20 . . Squads Dispatched 4 | . 4 . . . Investigation 1 | . 1 . . . Extermination . | . . . . . Reinforcement 3 | . 3 . . . Assault . | . . . . . Garrison . | . . . . . Intercept . | . . . . . Searches Triggered . | . . . . . Construction Impeded . | . . . . . Haulers Reinforced . | . . . . . Active Scanning Responses . | . . . . . Cargo Convoy Interrupts . | . . . . . Stealth | -11 -10 -10 -10 -9 --------- Run | Yrd Mat Min Exi Min Distress Signals 2 | . 2 . . . Communications Jammed . | . . . . . Distress Signals . | . . . . . Times Spotted 50 | . 30 14 . 6 Peak Tracking Total 4 | . 4 3 . 4 Tactical Retreats 1 | . . 1 . . Traps | -11 -10 -10 -10 -9 ------- Run | Yrd Mat Min Exi Min Traps Triggered 3 | . 2 1 . . Indirectly . | . . . . . Trap Hack Attempts 5 | . . 5 . . Triggered . | . . . . . Disarmed 1 | . . 1 . . Reprogrammed . | . . . . . Reused . | . . . . . Traps Extracted . | . . . . . Installed . | . . . . . Triggered . | . . . . . Machines | -11 -10 -10 -10 -9 ---------- Run | Yrd Mat Min Exi Min Machines Disabled . | . . . . . Max in Single Turn . | . . . . . Machines Repaired . | . . . . . Machines Dismantled . | . . . . . Machines Sabotaged . | . . . . . Overloaded Fab Kills . | . . . . . Hacking | -11 -10 -10 -10 -9 --------- Run | Yrd Mat Min Exi Min Machines Accessed 4 | . 1 1 2 . Terminals 1 | . 1 . . . Fabricators . | . . . . . Repair Stations . | . . . . . Recycling Units . | . . . . . Scanalyzers . | . . . . . Garrison Access . | . . . . . Total Hacks 27 | . 2 1 24 . Successful 26 | . 1 1 24 . Failed 1 | . 1 . . . Catastrophic . | . . . . . Database Lockouts . | . . . . . Manual 3 | . 2 . 1 . Terminals 2 | . 2 . . . Fabricators . | . . . . . Repair Stations . | . . . . . Recycling Units . | . . . . . Scanalyzers . | . . . . . Garrison Access . | . . . . . Terminal Hacks 25 | . . 1 24 . Record 23 | . . . 23 . Open Door 1 | . . 1 . . Proto ID Catalog 1 | . . . 1 . Fabricator Hacks . | . . . . . Repair Station Hacks . | . . . . . Recycling Unit Hacks . | . . . . . Scanalyzer . | . . . . . Garrison Access Hacks . | . . . . . Unauthorized Hacks 1 | . 1 . . . Terminals 1 | . 1 . . . Operators 1 | . 1 . . . Fabricators . | . . . . . Repair Stations . | . . . . . Recycling Units . | . . . . . Scanalyzers . | . . . . . Garrison Access . | . . . . . Data Cores Recovered . | . . . . . Used . | . . . . . Hacking Detections . | . . . . . Full Trace Events . | . . . . . Feedback Events . | . . . . . Feedback Blocked . | . . . . . Robot Schematics Acquired . | . . . . . Robots Built . | . . . . . Authchips . | . . . . . Time . | . . . . . Total Robot Build Rating . | . . . . . Part Schematics Acquired . | . . . . . Parts Built . | . . . . . Authchips . | . . . . . Time . | . . . . . Total Part Build Rating . | . . . . . Part Studies Acquired . | . . . . . Parts Repaired . | . . . . . Time . | . . . . . Parts Recycled . | . . . . . Recycled Matter . | . . . . . Retrieved Matter . | . . . . . Retrieved Components . | . . . . . Parts Scanalyzed . | . . . . . Part Schematics Acquired . | . . . . . Parts Damaged . | . . . . . Bothacking | -11 -10 -10 -10 -9 ------------ Run | Yrd Mat Min Exi Min Used RIF Installer . | . . . . . Robots Hacked . | . . . . . Non-combat . | . . . . . Combat . | . . . . . Robot Hacks Applied . | . . . . . Relay Couplers Released . | . . . . . Fabnet Peak Effective % . | . . . . . Robots Rewired . | . . . . . Allies Hacked . | . . . . . Hacks Repelled . | . . . . . Allies | -11 -10 -10 -10 -9 -------- Run | Yrd Mat Min Exi Min Total Allies 2 | . . 2 . . Largest Group 2 | . . 2 2 . Highest-Rated Group 43 | . . 43 43 . Highest-Rated Ally 31 | . . 31 31 . Total Orders . | . . . . . Ally Attacks 19 | . . 19 . . Total Damage 273 | . . 273 . . Kills 4 | . . 4 . . Allies Corrupted . | . . . . . Allies Melted . | . . . . . Intel | -11 -10 -10 -10 -9 ------- Run | Yrd Mat Min Exi Min Active Infowar (turns) 340 | . 308 32 . . T.N.C. 340 | . 308 32 . . Robot Analysis Total . | . . . . . Derelict Logs Recovered 3 | . . 2 . 1 Drone Launches . | . . . . . Drone Recoveries . | . . . . . Exploration | -11 -10 -10 -10 -9 ------------- Run | Yrd Mat Min Exi Min Turns Passed 8547 | 113 1194 5473 1119 648 Spaces Moved 1797 | 62 603 700 280 152 Core 151 | 17 . 133 . 1 Treads 811 | 45 603 163 . . Legs 835 | . . 404 280 151 Wheels . | . . . . . Hover . | . . . . . Flight . | . . . . . Fastest Speed 50 | 50 160 160 400 400 Average Speed 454 | 153 160 766 400 408 Slowest Speed 1700 | 200 160 1700 400 1450 Overloaded Moves . | . . . . . Propulsion Burnouts . | . . . . . Robots Hopped . | . . . . . Potential Cave-ins . | . . . . . Cave-ins Triggered . | . . . . . Exploration Rate (%) 56 | 4 81 97 62 37 Regions Visited 4 Branch Regions 3 Pre-discovered Areas 3 | . . 2 1 . Known Exits Taken . | . . . . . Unknown Exits Taken 4 | 1 1 1 1 . Scrap Searched 2 | . . 1 . 1 Spaces Dug . | . . . . . Terrain Destroyed 29 | . 9 4 . 16 Melee . | . . . . . Projectile . | . . . . . AOE 29 | . 9 4 . 16 Terrain Rammed . | . . . . . Walls Destroyed . | . . . . . Machines Disabled . | . . . . . Actions | -11 -10 -10 -10 -9 --------- Run | Yrd Mat Min Exi Min Total 2006 | 74 701 779 283 169 Wait 49 | . 12 33 . 4 Move 1793 | 61 602 699 279 152 Hop . | . . . . . Pick Up 14 | 4 5 3 1 1 Fast Attach 9 | 5 2 2 . . Attach 17 | 2 3 6 1 5 Detach 10 | . 3 5 1 1 Swap 3 | . 2 1 . . Drop 4 | . 2 1 1 . Fire 102 | 2 70 24 . 6 Melee . | . . . . . Ram . | . . . . . Kick . | . . . . . Crush . | . . . . . Escape Stasis . | . . . . . Rewire . | . . . . . Trap 5 | . . 5 . . Miscellaneous . | . . . . . Route ------- -11/Scrapyard -10/Materials (discovered 3 exits: [*Mat x2] / *Min) -10/Mines (discovered 3 exits: [*Mat x2] / *Exi) -10/Exiles -9/Mines History --------- Turn | Location | Event 25 | -11/Scrapyard | Discovered new exit (range 15) 114 | -11/Scrapyard | Entered Materials 311 | -10/Materials | Build established: Mutant 472 | -10/Materials | Discovered new exit (range 6) 1074 | -10/Materials | Discovered new exit (range 3) 1159 | -10/Materials | Discovered new exit (range 8) 1308 | -10/Materials | Entered Mines 1314 | -10/Mines | Met a Derelict who couldn't figure out how to use a Trap Extractor 1490 | -10/Mines | Assembled infested the area 1741 | -10/Mines | Core integrity fell below 50% 2647 | -10/Mines | Learned location of Storage (-9) 2715 | -10/Mines | Discovered new exit (range 7) 3089 | -10/Mines | Discovered new exit (range 15) 3701 | -10/Mines | Learned Materials garrison access intel 6757 | -10/Mines | Deemed a non-threat by the Exiles lab entrance 6761 | -10/Mines | Discovered new exit (range 5) 6781 | -10/Mines | Entered Exiles 6781 | -10/Exiles | Accompanied by 2 allies 6811 | -10/Exiles | Led the pair of lost Derelicts to a safe place 6881 | -10/Exiles | Met 8R-AWN 6941 | -10/Exiles | Met EX-HEX 7105 | -10/Exiles | Met EX-DEC 7153 | -10/Exiles | Learned location of Zion (-6) 7225 | -10/Exiles | Met EX-BIN 7281 | -10/Exiles | Aligned with FarCom system 7285 | -10/Exiles | Given EX-Vault access code 7413 | -10/Exiles | Opened EX-Vault 7469 | -10/Exiles | Found Lightpack 2.0 7550 | -10/Exiles | Warned to stay clear of 0b10 Research branches 7862 | -10/Exiles | Discovered new exit (range 10) 7900 | -10/Exiles | Left Exiles lab with Lightpack 2.0 7900 | -10/Exiles | Entered Mines 8243 | -9/Mines | A weapon hastily lodged in a ceiling crevice suddenly fell to the ground 8304 | -9/Mines | Learned location of 1 exit from Lower Caves 8515 | -9/Mines | Core integrity fell below 20% 8548 | -9/Mines | Destroyed by Y-45 Defender with Heavy Assault Rifle Last Messages --------------- 08304_ Acquired derelict log, extracted data. Data stored: Lower Caves exits (x1). 08329_ System corrupted: Energy discharge (-25). 08365_ System corrupted: Energy discharge (-42). 08381_ K-01 Serf collects debris. 08412_ E7 SZ VS|90M>NL9CAQDYHR OMMRH=2SMGBRU 08480_ Searching scrap... 08480_ Found Imp. Targeting Computer. 08480_ Found 35 Matter. 08481_ Acquired 35 matter. 08484_ System corrupted: FCS attempts to trigger Grenade Launcher. 08484_ System corrupted: Grenade Launcher misfires. 08511_ Flak Cannon destroyed. 08514_ Aluminum Leg destroyed. 08515_ System corrupted: Heat flow error (+279). 08520_ Grenade Launcher destroyed. 08523_ Aluminum Leg destroyed. 08544_ Lgt. Cannon destroyed. Map ----- +----------------------------------------------------+ | #??????######????????????????????????????????????? | | ?????????????????????????????????????????????????? | | ?????????????????????????????????????????????????? | | ?????????????????????????????????????????????????? | | ?????????????????????????????????????????????????? | | ????????????????????????##???????????????????????? | | ???????????????????????" ???? ??????????????????? | | ???????????????????????] ??? #??????????????????? | | ?????????#?????????????! ??? ##?????????????????? | | ????????# ????????????? ??# ??????????????????? | | ###?????# ???????????###//## ??????????????????? | | # ?????# ???????????? ??????????????????? | | # #?????# #??????????? ???????????????????? | | #?????# #???????????? ???????????????????? | | # #?????# ???????????? #???????????????????? | | # #####?# #????????????? #???????????????????? | | #?# #????????????? #???????????????????? | | ##### #?# ##????????????? ##??????????????????? | | ????# ### ########?????? ???????????????????? | | ????# ## ???????# #????????????????????? | | ????#### ## #????????# #????????????????????? | | ???????## # #????????# #????????????????????? | | ????????## #????????# #????????????????????? | | ?????????## ##???????# #????????????????????? | | ??????????## #########YY#????????????????????? | | ???????????# @ #????????????????????? | | ???????????## ###########????????????????????? | | ????????????### ##??????????????????????????????? | | ??????????????####???????????????????????????????? | | ?????????????????????????????????????????????????? | | ?????????????????????????????????????????????????? | | | | | | | | | | | | | | | | | | | | | | | | | | | | | | | | | | | | | | | +----------------------------------------------------+ Best States ------------- Heat Dissipation 25 Energy Generation 14 Energy Capacity 160 Matter Stores 300 Matter Capacity 300 Sight Range 16 Terrain Scan Density 10 Evasion (%) 40 Targeting Accuracy 5 Recoil Reduction 2 Trap Extractor Capacity 6 Item Schematics ----------------- None Robot Schematics ------------------ None Fabricated ------------ Nothing Repaired ---------- Nothing Studied --------- None Alien Tech Used ----------------- None Achievements -------------- None Challenges ------------ None Game ------ Seed LobotomyReactiveImmobilizer Manual? 0 Play Time 00:20:27 Cumulative 27.4 hours Start 2026.02.22 @ 16:58:32 End 2026.02.22 @ 17:18:12 Sessions 1 Manual Loads 0 Difficulty Rogue Special Mode None Game No. 74 Rogue 74 Adventurer 0 Explorer 0 Win Type - Total 0 Types 0/0/0/0/0/0/0/0/0/0 Lore% 17 Gallery% 26 Achievement% 21 Wizard Run 0 Options --------- Layout 1 ASCII 0 Keyboard 1 Movement Vi Keybinds 0 Fullscreen 1 Font 24/Smallcaps Map View 50x35 Zoom Use 0% Tactical HUD 1 Map Filters NONE Filters NONE Steam 1 RUN: 20342c7b-78f0-4f16-abb8-53da75ce6deb